bitfinex-derivatives/quotes_BNBF0:USTF0_20250608
["timestamp","ask_amount","ask_price","bid_price","bid_amount"]
[1749349669043,1.15372986,649.35,648.8,0.648]
[1749349669241,0.651,649.47,648.8,0.648]
[1749349669443,1.15400537,649.46,648.79,0.399]
[1749349669641,1.15400537,649.45,648.79,0.399]
[1749349669942,1.15400537,649.44,648.79,0.399]
[1749349670145,1.15400537,649.43,648.79,0.399]
[1749349670345,1.15400537,649.42,648.79,0.399]
[1749349670547,1.15400537,649.41,648.79,0.399]
[1749349670741,1.15400537,649.4,648.54,0.30838498]
[1749349670942,1.15400537,649.39,648.54,0.30838498]
[1749349671141,1.15400537,649.38,648.54,0.30838498]
[1749349671349,1.15400537,649.37,648.54,0.30838498]
[1749349671548,1.15400537,649.36,648.54,0.30838498]
[1749349671746,1.15400537,649.35,648.54,0.30838498]
[1749349671950,0.651,649.47,648.54,0.30838498]
[1749349672151,1.15423052,649.46,648.54,0.30838498]
[1749349672452,1.15423052,649.45,648.54,0.30838498]
[1749349672650,1.15423052,649.44,648.54,0.30838498]
[1749349672849,1.15423052,649.43,648.55,0.97]
[1749349673051,1.15423052,649.42,648.55,0.97]
[1749349673347,1.15423052,649.41,648.55,0.97]
[1749349673553,1.15423052,649.4,648.56,0.399]
[1749349673750,1.15423052,649.39,648.56,0.399]
[1749349673948,1.15423052,649.38,648.56,0.399]
[1749349674149,1.15423052,649.37,648.56,0.399]
[1749349674348,1.15423052,649.36,648.56,0.399]
[1749349674647,1.15423052,649.35,648.56,0.399]
[1749349674848,1.15423052,649.34,648.56,0.399]
[1749349675049,1.15496946,649.33,648.56,0.399]
[1749349675349,0.651,649.47,648.56,0.399]
[1749349675650,1.15496946,649.46,648.56,0.399]
[1749349675853,1.15496946,649.45,648.56,0.399]
[1749349676149,1.15496946,649.44,648.56,0.399]
[1749349676353,1.15496946,649.43,648.56,0.399]
[1749349676557,1.15496946,649.42,648.56,0.399]
[1749349676755,0.651,649.47,648.56,0.399]
[1749349676756,1.15496946,649.41,648.56,0.399]
[1749349677052,1.15496946,649.4,648.56,0.399]
[1749349677255,1.15496946,649.39,648.56,0.399]
[1749349677552,1.15496946,649.38,648.56,0.399]
[1749349677758,1.15496946,649.37,648.56,0.399]
[1749349677956,1.15496946,649.36,648.56,0.399]
[1749349678254,1.15496946,649.35,648.56,0.399]
[1749349678458,1.15496946,649.34,648.56,0.399]
[1749349678655,0.651,649.47,648.56,0.399]
[1749349678854,1.15531795,649.46,648.56,0.399]
[1749349679054,1.15531795,649.45,648.56,0.399]
[1749349679258,1.15531795,649.44,648.56,0.399]
[1749349679455,1.15531795,649.43,648.56,0.399]
[1749349679659,1.15531795,649.42,648.56,0.399]
[1749349679956,1.15531795,649.41,648.56,0.399]
[1749349680255,0.651,649.47,648.56,0.399]
[1749349680256,1.15531795,649.4,648.56,0.399]
[1749349680457,1.15531795,649.39,648.56,0.399]
[1749349680753,0.651,649.47,648.56,0.399]
[1749349680955,1.15547428,649.46,648.56,0.399]
[1749349681254,1.15547428,649.45,648.56,0.399]
[1749349681559,1.15547428,649.44,648.56,0.399]
[1749349681759,1.15547428,649.43,648.56,0.399]
[1749349681955,1.15547428,649.42,648.56,0.399]
[1749349682160,1.15547428,649.41,648.56,0.399]
[1749349682360,1.15547428,649.4,648.56,0.399]
[1749349682560,1.15547428,649.39,648.56,0.399]
[1749349682861,1.15547428,649.38,648.56,0.399]
[1749349683061,1.15547428,649.37,648.56,0.399]
[1749349683261,1.15547428,649.36,648.56,0.399]
[1749349683561,1.15547428,649.35,648.56,0.399]
[1749349683758,1.15547428,649.34,648.56,0.399]
[1749349683961,1.15547428,649.33,648.56,0.399]
[1749349684260,0.651,649.47,648.56,0.399]
[1749349684557,1.15576487,649.46,648.56,0.399]
[1749349684756,1.15576487,649.45,648.56,0.399]
[1749349684960,1.15576487,649.44,648.56,0.399]
[1749349685157,1.15576487,649.43,648.56,0.399]
[1749349685357,1.15576487,649.42,648.56,0.399]
[1749349685562,1.15576487,649.41,648.56,0.399]
[1749349685861,1.15576487,649.4,648.56,0.399]
[1749349686059,1.15576487,649.39,648.56,0.399]
[1749349686256,1.15576487,649.38,648.56,0.399]
[1749349686461,1.15576487,649.37,648.56,0.399]
[1749349686661,1.15576487,649.36,648.56,0.399]
[1749349686862,1.15576487,649.35,648.56,0.399]
[1749349687164,1.15576487,649.34,648.56,0.399]
[1749349687361,1.15576487,649.52,648.59,3.84274728]
[1749349687562,1.15576487,649.51,648.59,3.84274728]
[1749349687764,1.15576487,649.5,648.59,3.84274728]
[1749349687963,1.15576487,649.49,648.59,3.84274728]
[1749349688167,1.15576487,649.48,648.59,3.84274728]
[1749349688368,1.15576487,649.47,648.59,3.84274728]
[1749349688564,1.15576487,649.46,648.59,3.84274728]
[1749349688765,1.15576487,649.45,648.59,3.84274728]
[1749349688966,1.15576487,649.44,648.59,3.84274728]
[1749349689166,1.15576487,649.43,648.59,3.84274728]
[1749349689369,0.838,649.48,648.59,3.84274728]
[1749349689666,1.15563171,649.47,648.59,3.84274728]
[1749349689867,1.15563171,649.46,648.59,3.84274728]
[1749349690068,1.15563171,649.45,648.59,3.84274728]
[1749349690266,1.15563171,649.44,648.59,3.84274728]
[1749349690468,1.15563171,649.43,648.61,3.84274728]
[1749349690670,0.838,649.48,648.61,3.84274728]
[1749349690869,1.15562431,649.47,648.61,3.84274728]
[1749349691069,1.15562431,649.46,648.61,3.84274728]
[1749349691269,1.15562431,649.45,648.61,3.84274728]
[1749349691471,1.15562431,649.44,648.61,3.84274728]
[1749349691674,1.15562431,649.43,648.61,3.84274728]
[1749349691875,0.838,649.48,648.61,3.84274728]
[1749349692075,1.15606346,649.47,648.61,3.84274728]
[1749349692371,1.15606346,649.46,648.61,3.84274728]
[1749349692571,1.15606346,649.45,648.61,3.84274728]
[1749349692773,1.15606346,649.44,648.61,3.84274728]
[1749349693077,1.15606346,649.43,648.61,3.84274728]
[1749349693274,0.838,649.48,648.61,3.84274728]
[1749349693473,1.15609442,649.47,648.61,3.84274728]
[1749349693672,1.15609442,649.46,648.61,3.84274728]
[1749349693873,1.15609442,649.45,648.61,3.84274728]
[1749349694075,1.15609442,649.44,648.61,3.84274728]
[1749349694278,1.15609442,649.43,648.61,3.84274728]
[1749349694477,0.838,649.48,648.61,3.84274728]
[1749349694678,1.15609017,649.47,648.61,3.84274728]
[1749349694880,1.15609017,649.46,648.61,3.84274728]
[1749349695078,1.15609017,649.45,648.61,3.84274728]
[1749349695377,1.15609017,649.44,648.61,3.84274728]
[1749349695679,1.15609017,649.43,648.61,3.84274728]
[1749349695877,0.838,649.48,648.61,3.84274728]
[1749349696077,1.15609404,649.47,648.61,3.84274728]
[1749349696283,1.15609404,649.46,648.61,3.84274728]
[1749349696581,1.15609404,649.45,648.62,0.399]
[1749349696778,1.15609404,649.44,648.62,0.399]
[1749349697081,1.15609404,649.43,648.62,0.399]
[1749349697382,1.15620517,649.42,648.62,0.399]
[1749349697678,1.15620517,649.41,648.62,0.399]
[1749349697882,1.15620517,649.4,648.62,0.399]
[1749349698079,1.15620517,649.39,648.62,0.399]
[1749349698282,1.15620517,649.38,648.62,0.399]
[1749349698583,1.15620517,649.37,648.62,0.399]
[1749349698782,1.15620517,649.36,648.62,0.399]
[1749349698979,1.15620517,649.35,648.62,0.399]
[1749349699178,1.15620517,649.34,648.62,0.399]
[1749349699383,0.838,649.48,648.62,0.399]
[1749349699683,1.15617952,649.47,648.62,0.399]
[1749349699982,1.15617952,649.46,648.62,0.399]
[1749349700182,1.15617952,649.45,648.62,0.399]
[1749349700382,1.15617952,649.44,648.62,0.399]
[1749349700580,1.15617952,649.43,648.62,0.399]
[1749349700784,1.15617952,649.42,648.62,0.399]
[1749349700990,1.15617952,649.41,648.62,0.399]
[1749349701279,1.15617952,649.4,648.62,0.399]
[1749349701479,1.15617952,649.39,648.62,0.399]
[1749349701683,1.15617952,649.38,648.62,0.399]
[1749349701883,1.15617952,649.37,648.62,0.399]
[1749349702085,1.15617952,649.36,648.62,0.399]
[1749349702279,1.15617952,649.35,648.62,0.399]
[1749349702484,1.15617952,649.34,648.62,0.399]
[1749349702780,1.15617952,649.33,648.62,0.399]
[1749349702980,0.838,649.48,648.62,0.399]
[1749349703283,1.15606087,649.47,648.62,0.399]
[1749349703482,1.15606087,649.46,648.62,0.399]
[1749349703683,1.15606087,649.45,648.62,0.399]
[1749349703979,1.15606087,649.44,648.62,0.399]
[1749349704183,1.15606087,649.43,648.62,0.399]
[1749349704379,1.15606087,649.42,648.62,0.399]
[1749349704583,1.15606087,649.41,648.62,0.399]
[1749349704780,1.15606087,649.4,648.62,0.399]
[1749349704980,1.15606087,649.39,648.62,0.399]
[1749349705186,1.15606087,649.38,648.62,0.399]
[1749349705482,1.15606087,649.37,648.62,0.399]
[1749349705680,1.15606087,649.36,648.62,0.399]
[1749349705884,1.15606087,649.35,648.63,0.715]
[1749349706183,1.15606087,649.34,648.63,0.715]
[1749349706484,1.15606087,649.33,648.63,0.715]
[1749349706785,0.838,649.48,648.63,0.715]
[1749349706984,1.15616329,649.47,648.63,0.715]
[1749349707185,1.15616329,649.46,648.63,0.715]
[1749349707380,1.15616329,649.45,648.63,0.715]
[1749349707583,1.15616329,649.44,648.63,0.715]
[1749349707782,0.26809548,649.25,648.63,0.715]
[1749349718086,0.26809548,649.25,648.64,0.399]
[1749349723091,0.836,649.24,648.64,0.399]
[1749349729293,0.836,649.24,648.63,0.715]
[1749349731898,0.836,649.24,648.6,3.84274728]
[1749349732102,0.836,649.24,648.64,0.399]
[1749349735606,0.836,649.24,648.65,0.925]
[1749349751623,0.836,649.24,648.66,0.399]
[1749349765336,0.836,649.24,648.67,0.818]
[1749349769234,0.26809548,649.25,648.67,0.818]
[1749349772939,0.603,649.24,648.67,0.818]
[1749349778548,0.603,649.24,648.68,0.399]
[1749349791661,0.603,649.24,648.54,0.30838498]
[1749349793968,0.603,649.24,648.55,0.8]
[1749349795469,0.603,649.24,648.56,0.399]
[1749349810988,0.26809548,649.25,648.56,0.399]
[1749349813389,0.775,649.24,648.56,0.399]
[1749349813590,0.775,649.24,648.57,0.665]
[1749349821193,0.775,649.24,648.58,0.399]
[1749349827498,0.26809548,649.25,648.58,0.399]
[1749349828998,0.26809548,649.25,648.59,0.664]
[1749349830601,0.889,649.24,648.59,0.664]
[1749349842608,0.26809548,649.25,648.59,0.664]
[1749349846715,0.822,649.24,648.59,0.664]
[1749349852113,0.822,649.24,648.54,4.15113226]
[1749349853715,0.822,649.24,648.57,3.84274728]
[1749349854813,0.822,649.24,648.58,0.399]
[1749349855917,0.822,649.24,648.59,0.82]
[1749349868927,0.822,649.24,648.58,0.399]
[1749349871129,0.822,649.24,648.61,3.84274728]
[1749349872427,0.822,649.24,648.62,3.84274728]
[1749349872728,0.822,649.24,648.62,4.68474728]
[1749349873130,0.822,649.24,648.62,0.842]
[1749349876637,0.822,649.24,648.63,0.399]
[1749349895650,0.822,649.24,648.61,3.84274728]
[1749349896749,0.26809548,649.25,648.61,3.84274728]
[1749349897051,0.26809548,649.25,648.54,4.15113226]
[1749349898050,0.26809548,649.25,648.55,0.399]
[1749349898448,0.26809548,649.25,648.55,4.24174728]
[1749349898647,0.26809548,649.25,648.56,0.943]
[1749349900053,0.594,649.24,648.56,0.943]
[1749349901954,0.594,649.24,648.57,3.84274728]
[1749349902552,0.594,649.24,648.58,3.84274728]
[1749349904460,0.594,649.24,648.56,0.943]
[1749349907856,0.594,649.24,648.59,3.84274728]
[1749349908056,0.26809135,649.17,648.59,3.84274728]
[1749349908361,0.26809135,649.17,648.6,3.84274728]
[1749349908861,0.26809135,649.17,648.59,3.84274728]
[1749349909658,0.26809135,649.17,648.6,3.84274728]
[1749349910261,0.26809135,649.17,648.61,3.84274728]
[1749349911861,0.26809135,649.17,648.62,3.84274728]
[1749349914162,0.26809135,649.17,648.72,3.84274728]
[1749349916567,0.26809135,649.17,648.74,3.84274728]
[1749349916863,0.26809135,649.17,648.77,3.84274728]
[1749349917368,0.594,649.24,648.77,3.84274728]
[1749349917770,0.594,649.24,648.73,0.399]
[1749349919470,0.594,649.24,648.74,0.686]
[1749349926170,0.26804902,649.27,648.74,0.686]
[1749349928374,0.796,649.26,648.74,0.686]
[1749349933677,0.796,649.26,648.75,0.399]
[1749349937277,0.796,649.26,648.76,0.728]
[1749349957707,0.796,649.26,648.78,3.84274728]
[1749349958405,0.26804902,649.27,648.78,3.84274728]
[1749349959107,0.26804902,649.27,648.79,0.399]
[1749349962005,0.841,649.26,648.79,0.399]
[1749349962811,0.841,649.26,648.8,0.845]
[1749349982822,0.841,649.26,648.76,3.84274728]
[1749349983919,0.841,649.26,648.77,0.399]
[1749349985524,0.841,649.26,648.78,0.906]
[1749349997631,0.841,649.26,648.86,3.84274728]
[1749350001934,0.841,649.26,648.87,0.399]
[1749350008245,0.841,649.26,648.88,0.876]
[1749350011940,0.26804902,649.27,648.88,0.876]
[1749350015946,0.962,649.26,648.88,0.876]
[1749350025952,0.962,649.26,648.89,0.399]
[1749350037265,0.962,649.26,648.9,0.792]
[1749350049872,0.26804902,649.27,648.9,0.792]
[1749350053776,0.81,649.26,648.9,0.792]
[1749350054074,0.81,649.26,648.91,0.399]
[1749350063484,0.81,649.26,648.92,0.722]
[1749350068987,0.81,649.26,648.93,0.399]
[1749350084100,0.81,649.26,648.92,0.722]
[1749350087804,0.81,649.26,648.93,0.399]
[1749350090907,0.26804902,649.27,648.93,0.399]
[1749350093307,0.835,649.26,648.93,0.399]
[1749350096516,0.835,649.26,648.94,0.834]
[1749350110724,0.835,649.26,648.95,0.399]
[1749350117932,0.26806244,649.19,648.95,0.399]
[1749350122235,0.26806244,649.19,648.96,0.875]
[1749350125632,0.26806244,649.19,648.97,0.399]
[1749350136750,0.26806244,649.19,648.57,3.84274728]
[1749350136946,0.26806244,649.19,648.55,3.84274728]
[1749350137445,0.26806244,649.19,648.56,3.84274728]
[1749350137746,0.26806244,649.19,648.59,3.84274728]
[1749350139351,0.697,649.18,648.59,3.84274728]
[1749350139551,0.697,649.18,648.57,3.84274728]
[1749350139750,0.697,649.18,648.6,0.399]
[1749350150357,0.697,649.18,648.61,0.3083517]
[1749350152556,0.697,649.18,648.62,0.913]
[1749350152760,0.697,649.18,648.62,1.22134695]
[1749350162263,0.697,649.18,648.63,0.399]
[1749350171070,0.697,649.18,648.64,3.84274728]
[1749350171974,0.697,649.18,648.65,0.855]
[1749350172174,0.26807689,649.27,648.65,0.855]
[1749350172574,0.26807689,649.27,648.65,4.69774728]
[1749350173070,0.26807689,649.27,648.66,3.84274728]
[1749350173472,0.26807689,649.27,648.65,0.855]
[1749350173473,0.26807689,649.27,648.69,3.84274728]
[1749350174471,0.26807689,649.27,648.65,0.855]
[1749350175477,0.811,649.26,648.65,0.855]
[1749350184184,0.811,649.26,648.68,3.84274728]
[1749350185285,0.811,649.26,648.71,3.84274728]
[1749350185884,0.26805315,649.24,648.71,3.84274728]
[1749350186482,0.26805315,649.24,648.65,0.855]
[1749350186483,0.26805315,649.24,648.69,3.84274728]
[1749350187986,0.26805315,649.24,648.65,0.855]
[1749350190888,0.26805315,649.24,648.69,3.84274728]
[1749350191289,0.26805315,649.24,648.7,0.399]
[1749350199999,0.26805315,649.24,648.71,0.794]
[1749350204100,0.811,649.26,648.72,0.30829942]
[1749350209510,0.26802425,649.38,648.72,0.30829942]
[1749350213315,0.635,649.37,648.73,0.949]
[1749350213519,0.635,649.37,648.74,0.30828991]
[1749350216817,0.635,649.37,648.75,0.399]
[1749350217016,0.635,649.37,648.76,0.30828041]
[1749350218914,0.635,649.37,648.78,3.84274728]
[1749350219118,0.635,649.37,648.78,4.15101818]
[1749350219819,0.635,649.37,648.78,0.3082709]
[1749350220319,0.635,649.37,648.78,4.15101818]
[1749350220821,0.635,649.37,648.78,0.3082709]
[1749350230622,0.635,649.37,648.82,3.84274728]
[1749350231523,0.635,649.37,648.81,3.84274728]
[1749350232127,0.635,649.37,648.82,0.79]
[1749350243833,0.635,649.37,648.83,0.399]
[1749350247033,0.635,649.37,648.84,0.847]
[1749350248334,0.26802425,649.38,648.84,0.847]
[1749350251436,1.15198403,650.08,648.84,0.847]
[1749350251632,0.26793654,649.45,648.84,0.847]
[1749350251834,0.87,649.84,648.84,0.847]
[1749350252137,0.26793654,649.45,648.84,0.847]
[1749350252334,0.87,649.84,648.84,0.847]
[1749350252637,0.26793654,649.45,648.84,0.847]
[1749350252837,0.87,649.84,648.84,0.847]
[1749350253236,0.26793654,649.45,648.84,0.847]
[1749350253434,1.13975748,649.83,648.84,0.847]
[1749350253735,0.87,649.84,648.84,0.847]
[1749350253736,0.26793654,649.45,648.84,0.847]
[1749350253937,1.14411456,649.83,648.84,0.847]
[1749350254134,0.26793654,649.45,648.84,0.847]
[1749350254540,0.87,649.84,648.84,0.847]
[1749350254736,0.26793757,649.45,648.84,0.847]
[1749350254942,0.87,649.84,648.84,0.847]
[1749350255142,1.14424189,649.83,648.84,0.847]
[1749350255339,0.26793757,649.45,648.84,0.847]
[1749350255542,1.14424189,649.81,648.84,0.847]
[1749350255742,0.26793861,649.45,648.84,0.847]
[1749350256243,0.26793654,649.45,648.84,0.847]
[1749350261742,0.26793654,649.45,648.85,3.84274728]
[1749350262542,0.26793654,649.45,648.87,3.84274728]
[1749350263343,0.26793654,649.45,648.91,3.84274728]
[1749350263943,0.26793654,649.45,648.84,0.847]
[1749350275544,0.26793654,649.45,648.85,0.399]
[1749350279952,0.26793654,649.45,648.86,0.58]
[1749350291860,0.26793654,649.45,648.87,0.399]
[1749350297164,0.26793654,649.45,648.87,4.24174728]
[1749350298567,0.26793654,649.45,648.87,0.399]
[1749350301364,0.26793654,649.45,648.88,0.668]
[1749350307371,0.903,649.44,648.88,0.668]
[1749350308271,0.13725739,649.44,648.88,0.668]
[1749350308774,0.13725739,649.44,648.94,3.84274728]
[1749350312373,0.13725739,649.44,648.93,3.84274728]
[1749350313171,0.13725739,649.44,648.92,3.84274728]
[1749350313574,0.13725739,649.44,648.93,3.84274728]
[1749350313971,0.13725739,649.44,648.94,3.84274728]
[1749350318177,0.13725739,649.44,649.02,3.84274728]
[1749350318775,0.13725739,649.44,649.03,0.399]
[1749350322573,0.13725739,649.44,649.04,0.878]
[1749350337587,0.26793654,649.45,649.04,0.878]
[1749350341689,0.667,649.44,649.04,0.878]
[1749350343294,0.667,649.44,649.05,0.399]
[1749350354998,0.667,649.44,649.06,0.649]
[1749350369008,0.667,649.44,649.05,0.399]
[1749350371406,0.667,649.44,648.78,0.3082709]
[1749350372010,0.667,649.44,648.79,0.754]
[1749350375111,0.667,649.44,648.8,0.399]
[1749350384612,0.26793654,649.45,648.8,0.399]
[1749350386913,0.569,649.44,648.8,0.399]
[1749350389114,0.569,649.44,648.79,0.754]
[1749350392919,0.569,649.44,648.8,0.399]
[1749350400126,0.569,649.44,648.81,0.694]
[1749350411634,0.569,649.44,648.82,3.84274728]
[1749350412130,0.569,649.44,648.81,0.694]
[1749350419444,0.569,649.44,648.82,0.399]
[1749350426051,0.569,649.44,648.83,0.864]
[1749350443966,0.26793654,649.45,648.83,0.864]
[1749350447762,0.844,649.44,648.83,0.864]
[1749350449467,0.844,649.44,648.84,0.399]
[1749350456365,0.844,649.44,648.85,0.815]
[1749350461367,0.844,649.44,648.96,3.84274728]
[1749350462873,0.844,649.44,648.85,0.815]
[1749350462874,0.844,649.44,648.88,3.84274728]
[1749350464170,0.844,649.44,648.89,3.84274728]
[1749350464574,0.844,649.44,648.88,3.84274728]
[1749350465171,0.844,649.44,648.89,3.84274728]
[1749350465476,0.844,649.44,648.88,3.84274728]
[1749350467973,0.844,649.44,648.85,0.815]
[1749350468271,0.844,649.44,648.85,1.12323765]
[1749350471475,0.844,649.44,648.85,0.30823765]
[1749350474078,0.844,649.44,648.86,0.663]
[1749350474274,0.844,649.44,648.87,0.30822815]
[1749350474875,0.26793654,649.45,648.87,0.30822815]
[1749350478984,0.877,649.44,648.87,0.30822815]
[1749350481192,0.877,649.44,648.88,0.399]
[1749350481392,0.877,649.44,648.89,0.30821865]
[1749350482593,0.877,649.44,648.89,4.15096593]
[1749350482894,0.877,649.44,648.91,3.84274728]
[1749350483395,0.877,649.44,648.9,3.84274728]
[1749350485090,0.877,649.44,648.91,3.84274728]
[1749350485491,0.877,649.44,648.89,4.15096593]
[1749350488301,0.877,649.44,648.97,3.84274728]
[1749350489305,0.877,649.44,648.96,3.84274728]
[1749350490605,0.877,649.44,648.97,0.774]
[1749350494905,0.877,649.44,648.97,4.61674728]
[1749350495405,0.877,649.44,649.0,3.84274728]
[1749350498008,0.877,649.44,648.97,0.774]
[1749350503017,0.2679613,649.55,648.97,0.774]
[1749350505612,0.622,649.54,648.97,0.774]
[1749350506613,0.622,649.54,648.97,4.61674728]
[1749350509723,0.622,649.54,648.98,3.84274728]
[1749350510820,0.622,649.54,648.99,3.84274728]
[1749350511824,0.622,649.54,649.0,3.84274728]
[1749350512723,0.622,649.54,649.01,0.399]
[1749350514027,0.622,649.54,649.02,0.826]
[1749350528137,0.622,649.54,649.05,3.84274728]
[1749350529638,0.622,649.54,649.06,3.84274728]
[1749350530434,0.622,649.54,649.07,3.84274728]
[1749350531242,0.622,649.54,649.08,3.84274728]
[1749350533440,0.622,649.54,649.09,3.84274728]
[1749350535545,0.2679613,649.55,649.09,3.84274728]
[1749350535843,0.2679613,649.55,649.02,0.826]
[1749350535844,0.2679613,649.55,649.06,3.84274728]
[1749350536146,0.2679613,649.55,649.09,3.84274728]
[1749350537147,0.2679613,649.55,649.08,3.84274728]
[1749350537544,0.2679613,649.55,649.09,3.84274728]
[1749350537944,0.2679613,649.55,649.02,0.826]
[1749350538348,0.2679613,649.55,649.03,0.399]
[1749350539046,0.766,649.54,649.03,0.399]
[1749350545850,0.766,649.54,649.04,0.666]
[1749350568863,0.766,649.54,649.05,0.399]
[1749350570160,0.2679613,649.55,649.05,0.399]
[1749350573565,0.55,649.54,649.05,0.399]
[1749350575463,0.55,649.54,649.06,0.542]
[1749350581374,0.55,649.54,649.09,3.84274728]
[1749350582769,0.55,649.54,649.1,3.84274728]
[1749350584672,0.55,649.54,649.08,3.84274728]
[1749350584970,0.55,649.54,649.1,3.84274728]
[1749350585675,0.55,649.54,649.11,3.84274728]
[1749350585875,0.55,649.54,649.06,0.542]
[1749350585876,0.55,649.54,649.1,3.84274728]
[1749350586273,0.55,649.54,649.11,3.84274728]
[1749350588075,0.55,649.54,649.06,0.542]
[1749350589475,0.55,649.54,649.03,3.84274728]
[1749350589878,0.55,649.54,649.04,0.4]
[1749350592179,0.55,649.54,649.05,0.543]
[1749350607182,0.55,649.54,649.06,0.4]
[1749350621099,0.55,649.54,649.05,0.543]
[1749350621398,0.55,649.54,648.98,3.84274728]
[1749350621894,0.55,649.54,648.89,0.30821865]
[1749350621895,0.55,649.54,648.97,3.84274728]
[1749350622794,0.55,649.54,648.99,3.84274728]
[1749350623999,0.55,649.54,649.0,0.786]
[1749350625000,0.55,649.54,649.01,0.4]
[1749350625397,0.55,649.54,649.08,3.84274728]
[1749350628206,0.55,649.54,649.01,4.24274728]
[1749350630505,0.55,649.54,649.04,3.84274728]
[1749350632711,0.2679613,649.55,649.04,3.84274728]
[1749350635917,0.734,649.54,649.04,3.84274728]
[1749350637013,0.734,649.54,649.03,3.84274728]
[1749350638416,0.734,649.54,649.02,3.84274728]
[1749350639919,0.734,649.54,649.03,0.4]
[1749350640721,0.734,649.54,649.03,4.24274728]
[1749350643022,0.734,649.54,649.03,0.4]
[1749350651134,0.734,649.54,649.03,4.24274728]
[1749350652434,0.734,649.54,649.03,0.4]
[1749350652634,0.734,649.54,649.04,0.588]
[1749350666845,0.734,649.54,649.05,0.4]
[1749350667941,0.734,649.54,649.11,3.84274728]
[1749350678348,0.734,649.54,649.05,0.4]
[1749350680452,0.734,649.54,649.06,0.533]
[1749350687855,1.15236545,650.01,649.06,0.533]
[1749350688058,0.26794583,649.49,649.06,0.533]
[1749350688458,1.14987565,649.98,649.06,0.533]
[1749350688758,0.26789838,649.49,649.06,0.533]
[1749350688954,1.14987565,649.96,649.06,0.533]
[1749350689160,0.26790148,649.49,649.06,0.533]
[1749350689458,1.14987565,649.94,649.06,0.533]
[1749350689659,0.26790354,649.49,649.06,0.533]
[1749350690157,0.2679056,649.49,649.06,0.533]
[1749350691155,0.796,649.48,649.06,0.533]
[1749350693961,0.796,649.48,649.07,0.4]
[1749350704264,0.2679056,649.49,649.07,0.4]
[1749350707266,0.55,649.48,649.07,0.4]
[1749350710974,0.55,649.48,649.08,0.674]
[1749350723883,0.55,649.48,649.09,0.4]
[1749350729289,0.55,649.48,649.1,0.795]
[1749350742404,0.55,649.48,648.96,3.84274728]
[1749350743101,0.55,649.48,648.97,0.4]
[1749350745006,0.55,649.48,649.01,3.84274728]
[1749350745405,0.55,649.48,649.02,0.568]
[1749350761717,0.55,649.48,649.03,0.4]
[1749350763522,0.26792623,649.6,649.03,0.4]
[1749350766820,0.518,649.59,649.03,0.4]
[1749350770025,0.518,649.59,649.04,0.528]
[1749350777829,0.26792623,649.6,649.04,0.528]
[1749350780934,0.69,649.59,649.04,0.528]
[1749350788837,0.69,649.59,648.89,0.30821865]
[1749350790442,0.69,649.59,648.9,0.4]
[1749350792141,0.69,649.59,648.91,0.642]
[1749350806153,0.69,649.59,648.9,0.4]
[1749350809152,0.69,649.59,648.91,0.512]
[1749350811752,0.69,649.59,648.91,4.35474728]
[1749350812558,0.69,649.59,648.91,0.512]
[1749350813158,0.69,649.59,648.91,4.35474728]
[1749350816564,0.69,649.59,648.92,0.4]
[1749350833782,0.69,649.59,648.93,0.493]